bitfinex-derivatives/quotes_BTCF0:USTF0_20250811
["timestamp","ask_amount","ask_price","bid_price","bid_amount"]
[1754877843336,0.0001,120770.0,120760.0,0.45373583]
[1754877843642,0.0001,120770.0,120760.0,0.44403204]
[1754877843838,0.0001,120770.0,120760.0,0.5160192]
[1754877844546,0.3608,120790.0,120780.0,0.2483084]
[1754877844838,3.28444728,120790.0,120780.0,0.2483084]
[1754877845042,3.48874519,120790.0,120780.0,0.2944584]
[1754877845248,2.7312,120790.0,120780.0,0.87235384]
[1754877845544,2.7312,120790.0,120780.0,0.9297773]
[1754877845545,1.53068,120790.0,120780.0,0.9297773]
[1754877845741,1.53068,120790.0,120780.0,0.9298773]
[1754877846349,1.52924,120790.0,120780.0,0.9298773]
[1754877846741,1.52924,120790.0,120780.0,1.4298773]
[1754877846934,1.60391,120790.0,120780.0,1.4298773]
[1754877847139,0.60051,120790.0,120780.0,1.19088986]
[1754877847337,0.60051,120790.0,120780.0,0.5001]
[1754877847338,2.64953673,120790.0,120780.0,0.5001]
[1754877847535,3.85563464,120790.0,120780.0,0.56252346]
[1754877847742,3.85563464,120790.0,120780.0,0.5051]
[1754877847941,2.85383464,120790.0,120780.0,0.14339]
[1754877848142,2.85383464,120790.0,120780.0,0.14749]
[1754877848143,3.85499464,120790.0,120780.0,0.14749]
[1754877848449,3.85499464,120790.0,120780.0,0.0091]
[1754877848645,2.74438174,120790.0,120750.0,0.2148826]
[1754877848836,0.3608,120770.0,120760.0,0.0827858]
[1754877849148,1.92629791,120770.0,120760.0,0.44844863]
[1754877849344,1.41029519,120770.0,120760.0,0.44854863]
[1754877849547,2.41021519,120770.0,120760.0,0.44854863]
[1754877849847,2.41021519,120770.0,120760.0,0.37656147]
[1754877850350,3.47667748,120770.0,120760.0,0.00980567]
[1754877850535,3.47767748,120770.0,120760.0,0.51280567]
[1754877850735,3.79331693,120770.0,120760.0,0.51280567]
[1754877850936,3.79299693,120770.0,120760.0,0.51280567]
[1754877851146,3.79299693,120770.0,120760.0,0.56210567]
[1754877851746,3.47655748,120770.0,120760.0,0.56210567]
[1754877852450,3.47655748,120770.0,120760.0,0.64489227]
[1754877852646,2.47775748,120770.0,120760.0,0.51280567]
[1754877852852,3.47363748,120770.0,120760.0,0.51280567]
[1754877853153,3.47483748,120770.0,120760.0,0.5128056]
[1754877853538,2.47775748,120770.0,120760.0,0.58479276]
[1754877853748,3.47427748,120770.0,120760.0,0.5128056]
[1754877853946,3.47427748,120770.0,120760.0,0.0128056]
[1754877854245,2.47775748,120770.0,120760.0,0.0128056]
[1754877854445,3.47315748,120770.0,120760.0,0.0621056]
[1754877854952,3.47315748,120770.0,120760.0,0.0128056]
[1754877855449,2.47775748,120770.0,120760.0,0.6448924]
[1754877855650,2.47775748,120770.0,120760.0,0.71687956]
[1754877855651,3.47307748,120770.0,120760.0,0.71687956]
[1754877855849,2.47775748,120770.0,120760.0,0.71687956]
[1754877856050,2.79419693,120770.0,120760.0,0.5128056]
[1754877856253,3.78715693,120770.0,120760.0,0.5128056]
[1754877856546,3.78659693,120770.0,120760.0,0.71687956]
[1754877857346,2.79419693,120770.0,120760.0,0.58479276]
[1754877857545,3.78543693,120770.0,120760.0,0.66757966]
[1754877857745,3.78543693,120770.0,120760.0,0.5128056]
[1754877857941,3.78515693,120770.0,120760.0,0.5955925]
[1754877858147,3.78463693,120770.0,120760.0,0.6448925]
[1754877858353,3.46819748,120770.0,120760.0,0.6448925]
[1754877858546,3.46819748,120770.0,120760.0,0.5128056]
[1754877858748,3.46819748,120770.0,120760.0,0.58505556]
[1754877859248,3.46819748,120770.0,120760.0,0.5945925]
[1754877859442,3.46819748,120770.0,120760.0,0.6958163]
[1754877859644,2.27345957,120770.0,120760.0,0.7451163]
[1754877859844,0.001,120770.0,120760.0,0.8785625]
[1754877860455,0.001,120770.0,120760.0,1.06669174]
[1754877860754,0.001,120770.0,120760.0,1.03778681]
[1754877861451,0.001,120770.0,120760.0,1.06679174]
[1754877861847,0.001,120770.0,120760.0,0.95586234]
[1754877862053,0.001,120770.0,120760.0,0.9655662]
[1754877862246,0.001,120770.0,120760.0,0.98387358]
[1754877862443,0.001,120770.0,120760.0,1.13479803]
[1754877862647,1.001,120770.0,120760.0,1.03368521]
[1754877863649,0.3618,120770.0,120760.0,1.03368521]
[1754877863856,3.11571748,120770.0,120760.0,0.97977358]
[1754877864057,3.11571748,120770.0,120760.0,0.81735016]
[1754877864252,3.11571748,120770.0,120760.0,0.64809076]
[1754877864551,3.11571748,120770.0,120760.0,0.66641668]
[1754877864552,2.11695748,120770.0,120760.0,0.66641668]
[1754877864756,3.11443748,120770.0,120760.0,0.82146558]
[1754877864949,2.11695748,120770.0,120760.0,0.87920276]
[1754877865155,3.11395748,120770.0,120760.0,0.71625276]
[1754877866052,3.11395748,120770.0,120760.0,0.87866106]
[1754877866248,3.11343748,120770.0,120760.0,0.97977388]
[1754877866446,3.11343748,120770.0,120760.0,0.80290023]
[1754877866651,2.11695748,120770.0,120760.0,0.59469106]
[1754877866950,3.11359748,120770.0,120760.0,0.51190386]
[1754877867362,2.11695748,120770.0,120760.0,0.51190386]
[1754877867555,3.11243748,120770.0,120760.0,0.51600386]
[1754877867753,0.20429791,120740.0,120730.0,0.2308562]
[1754877867950,2.72117464,120740.0,120720.0,0.52515192]
[1754877868153,0.56509791,120730.0,120720.0,0.44233972]
[1754877868356,1.19873791,120730.0,120720.0,0.5324054]
[1754877868561,2.04393519,120730.0,120720.0,0.5365054]
[1754877868760,2.04402531,120730.0,120720.0,0.5365054]
[1754877868958,2.04402531,120730.0,120720.0,0.5366054]
[1754877869163,2.04402531,120730.0,120720.0,0.5416054]
[1754877869461,2.04402531,120730.0,120720.0,0.9698854]
[1754877869962,2.04402531,120730.0,120720.0,1.0416054]
[1754877870162,9.012e-05,120730.0,120720.0,1.0416054]
[1754877870458,9.012e-05,120730.0,120720.0,1.18691872]
[1754877870664,9.012e-05,120730.0,120720.0,1.46488584]
[1754877870867,9.012e-05,120730.0,120720.0,1.54771872]
[1754877871662,9.012e-05,120730.0,120720.0,1.56937361]
[1754877871860,9.012e-05,120730.0,120720.0,1.56437361]
[1754877872166,9.012e-05,120730.0,120720.0,1.56537361]
[1754877872167,0.00109012,120730.0,120720.0,1.56537361]
[1754877872661,0.00109012,120730.0,120720.0,1.48254073]
[1754877872861,0.99037012,120730.0,120720.0,1.12174073]
[1754877873054,0.57372768,120730.0,120720.0,0.88707073]
[1754877873260,2.44346504,120730.0,120720.0,0.89117073]
[1754877873563,1.45526504,120730.0,120720.0,0.59343533]
[1754877873863,2.44366504,120730.0,120720.0,0.59343533]
[1754877874062,2.44366504,120730.0,120720.0,0.67625003]
[1754877875063,1.45526504,120730.0,120720.0,0.52685489]
[1754877875262,2.44101492,120730.0,120720.0,0.60966969]
[1754877875457,1.45517492,120730.0,120720.0,0.65896969]
[1754877875659,1.13884284,120730.0,120720.0,0.83311969]
[1754877875860,1.13884284,120730.0,120720.0,0.90786969]
[1754877876060,2.12324284,120730.0,120720.0,1.00890144]
[1754877876559,1.13884284,120730.0,120720.0,0.90786969]
[1754877876759,2.12232284,120730.0,120720.0,0.90786999]
[1754877876966,2.12232284,120730.0,120720.0,0.65896999]
[1754877877264,2.12232284,120730.0,120720.0,0.57615489]
[1754877877562,2.12128284,120730.0,120720.0,0.52685489]
[1754877877763,1.13873547,120730.0,120720.0,0.75761526]
[1754877878066,1.13882121,120730.0,120720.0,0.60966999]
[1754877878364,2.43730066,120730.0,120720.0,0.60966999]
[1754877878565,1.45517492,120730.0,120720.0,0.52685489]
[1754877878767,2.43679549,120730.0,120720.0,0.52685489]
[1754877878960,2.43673492,120730.0,120720.0,0.52685489]
[1754877879468,2.43673492,120730.0,120720.0,0.02685489]
[1754877880362,2.43673492,120730.0,120720.0,0.10966999]
[1754877881068,2.43673492,120730.0,120720.0,0.02685489]
[1754877881270,2.43673492,120730.0,120720.0,0.10966999]
[1754877881566,1.45517492,120730.0,120720.0,0.02685489]
[1754877881865,1.46263673,120730.0,120690.0,0.07220084]
[1754877882080,0.89904302,120700.0,120690.0,0.07220084]
[1754877882259,0.89904302,120700.0,120690.0,0.20195654]
[1754877882260,0.89914441,120700.0,120690.0,0.20195654]
[1754877882460,2.35854169,120700.0,120690.0,0.20195654]
[1754877882667,2.35854169,120700.0,120690.0,0.70195654]
[1754877883270,2.42530404,120700.0,120690.0,0.70195654]
[1754877883470,2.42540404,120700.0,120690.0,0.70205654]
[1754877883769,2.24540102,120700.0,120690.0,0.95095654]
[1754877883959,2.42284404,120700.0,120690.0,0.70205654]
[1754877884159,2.42284404,120700.0,120690.0,1.01623471]
[1754877884363,2.42284404,120700.0,120690.0,1.03709729]
[1754877884864,0.00020139,120700.0,120690.0,1.03609729]
[1754877885065,0.00120139,120700.0,120690.0,1.03609729]
[1754877885270,0.97160139,120700.0,120690.0,1.06055986]
[1754877885471,0.97160139,120700.0,120690.0,1.06155986]
[1754877885771,0.97160139,120700.0,120690.0,1.42235986]
[1754877886069,0.00120139,120700.0,120690.0,1.42235986]
[1754877886270,0.97016139,120700.0,120690.0,1.42235986]
[1754877886465,0.97016139,120700.0,120690.0,1.4945607]
[1754877887973,0.97016139,120700.0,120690.0,1.4965607]
[1754877888366,0.97016139,120700.0,120690.0,1.05945986]
[1754877888570,1.50596,120720.0,120710.0,0.08282]
[1754877888867,2.47156,120720.0,120710.0,0.37864]
[1754877891281,2.47156,120720.0,120710.0,0.62974]
[1754877891464,2.47156,120720.0,120710.0,0.62984]
[1754877891670,3.20116265,120720.0,120710.0,0.63184]
[1754877892273,3.58345835,120720.0,120710.0,0.63184]
[1754877892769,2.61785835,120720.0,120710.0,0.63184]
[1754877892970,3.57909835,120720.0,120710.0,0.80599]
[1754877893772,2.61785835,120720.0,120710.0,0.80599]
[1754877893978,3.57637835,120720.0,120710.0,0.63184]
[1754877894375,3.57757835,120720.0,120710.0,0.54902]
[1754877894577,3.57757835,120720.0,120710.0,0.5021]
[1754877895377,3.95987405,120720.0,120710.0,0.5009]
[1754877895877,3.95987405,120720.0,120710.0,0.0021]
[1754877896584,3.57757835,120720.0,120710.0,0.0021]
[1754877897576,2.61785835,120720.0,120710.0,0.1318424]
[1754877897782,3.56917835,120720.0,120710.0,0.1318424]
[1754877898279,2.61785835,120720.0,120710.0,0.3807424]
[1754877898479,0.3608,120750.0,120730.0,0.082809]
[1754877898681,0.53824302,120750.0,120740.0,0.4614216]
[1754877898880,2.354416,120750.0,120740.0,0.39637941]
[1754877899177,2.42117835,120750.0,120740.0,0.28472244]
[1754877899378,2.42105835,120750.0,120740.0,0.23780244]
[1754877899577,1.47169835,120750.0,120740.0,0.23780244]
[1754877899779,2.42645835,120750.0,120740.0,0.23790244]
[1754877900075,1.47569835,120750.0,120740.0,0.2126216]
[1754877900372,0.73260265,120750.0,120740.0,0.83202885]
[1754877900583,2.06529835,120750.0,120740.0,0.83202885]
[1754877900779,1.47569835,120750.0,120740.0,0.1657016]
[1754877901083,2.42549835,120750.0,120740.0,0.23790244]
[1754877901284,1.6969757,120750.0,120710.0,0.14948448]
[1754877901484,1.28133872,120720.0,120710.0,0.00970776]
[1754877901685,2.61319442,120720.0,120700.0,0.0828253]
[1754877901986,0.92053872,120710.0,120690.0,0.23094517]
[1754877902182,0.92053872,120700.0,120690.0,0.06527817]
[1754877902385,1.88647112,120700.0,120680.0,0.18795532]
[1754877902578,0.17744302,120680.0,120670.0,0.0828501]
[1754877902774,1.87213872,120680.0,120670.0,0.06681351]
[1754877903077,2.03787472,120680.0,120660.0,0.0001037]
[1754877903280,1.87193872,120670.0,120660.0,0.0001037]
[1754877903588,0.92053872,120670.0,120660.0,0.15297822]
[1754877903783,1.87203872,120670.0,120660.0,0.0871607]
[1754877904187,1.8065477,120670.0,120660.0,0.0871607]
[1754877904379,1.0208997,120670.0,120660.0,0.0871607]
[1754877904592,1.8055077,120670.0,120660.0,0.0871607]
[1754877904782,0.8551477,120670.0,120660.0,0.0871607]
[1754877905279,1.8046277,120670.0,120660.0,0.0063037]
[1754877905585,2.9493477,120670.0,120660.0,0.0063037]
[1754877905781,2.9493477,120670.0,120660.0,0.0043037]
[1754877905990,2.9503477,120670.0,120660.0,0.0063037]
[1754877906180,3.1160997,120670.0,120660.0,0.0063037]
[1754877906483,2.28979668,120670.0,120640.0,0.0828675]
[1754877906687,1.2096477,120650.0,120630.0,0.165748]
[1754877906888,0.53204302,120640.0,120620.0,0.0186439]
[1754877907188,0.8488477,120630.0,120610.0,0.0828902]
[1754877907386,1.67748302,120620.0,120600.0,0.04841]
[1754877907586,1.7965677,120610.0,120600.0,0.1313085]
[1754877907782,1.7966677,120610.0,120600.0,0.0828985]
[1754877907989,1.7966677,120610.0,120600.0,0.0869985]
[1754877908189,1.47986302,120610.0,120600.0,0.0869985]
[1754877908392,1.7953477,120610.0,120600.0,0.1354085]
[1754877908585,0.8489477,120610.0,120600.0,0.1354085]
[1754877908792,0.53214302,120610.0,120600.0,0.3745285]
[1754877908991,0.8489477,120610.0,120600.0,0.6354085]
[1754877909288,1.47898302,120610.0,120600.0,0.5121]
[1754877909682,1.47898302,120610.0,120600.0,0.508]
[1754877909883,1.47898302,120610.0,120600.0,0.55641]
[1754877909884,0.53314302,120610.0,120600.0,0.55641]
[1754877910084,1.48122302,120610.0,120600.0,0.6393084]
[1754877910290,1.48122302,120610.0,120600.0,0.44504856]
[1754877910992,1.48118302,120610.0,120600.0,0.44504856]
[1754877911189,1.30994,120610.0,120600.0,0.44504856]
[1754877911595,0.53314302,120610.0,120600.0,0.94504856]
[1754877911889,1.48018302,120610.0,120600.0,0.94504856]
[1754877912286,0.8499477,120610.0,120600.0,0.70592856]
[1754877912490,1.7979077,120610.0,120600.0,0.70592856]
[1754877912686,1.7979077,120610.0,120600.0,0.70592866]
[1754877912888,1.62666468,120610.0,120600.0,0.70592866]
[1754877913081,0.53314302,120610.0,120600.0,0.94504866]
[1754877913286,1.48014302,120610.0,120600.0,0.70592866]
[1754877913490,0.53314302,120610.0,120600.0,0.87310866]
[1754877913687,0.0011,120610.0,120600.0,0.94504866]
[1754877913991,0.3619,120610.0,120600.0,0.94504866]
[1754877914298,1.47954302,120610.0,120600.0,0.94504866]
[1754877914496,1.47930302,120610.0,120600.0,0.70592866]
[1754877914697,0.53314302,120610.0,120600.0,0.94504866]
[1754877914996,1.47942302,120610.0,120600.0,0.94504866]
[1754877915193,1.30818,120610.0,120600.0,0.94504866]
[1754877915395,1.47942302,120610.0,120600.0,0.94504866]
[1754877915601,1.30738,120610.0,120600.0,0.94504866]
[1754877916083,0.3619,120610.0,120600.0,0.94504866]
[1754877916492,0.0011,120610.0,120600.0,0.94504866]
[1754877916993,1.50624,120620.0,120600.0,1.02796396]
[1754877917198,0.3608,120630.0,120620.0,0.3704154]
[1754877917395,0.67760468,120630.0,120620.0,0.04841]
[1754877917596,0.8488477,120630.0,120620.0,0.0828854]
[1754877917792,0.8488477,120630.0,120610.0,0.2970775]
[1754877917793,0.8488477,120630.0,120600.0,1.15372326]
[1754877917996,0.4880477,120610.0,120600.0,1.04300076]
[1754877918293,1.62200468,120610.0,120600.0,0.70202576]
[1754877918496,0.67770468,120610.0,120600.0,0.61923016]
[1754877918696,1.7922277,120610.0,120600.0,0.57082016]
[1754877918992,1.9950677,120610.0,120600.0,0.57082016]
[1754877919197,2.9380677,120610.0,120600.0,0.66271966]
[1754877919389,2.9378677,120610.0,120600.0,0.71112966]
[1754877919692,2.5770677,120610.0,120600.0,0.87830966]
[1754877919896,2.9378677,120610.0,120600.0,0.71112966]
[1754877920102,2.5770677,120610.0,120600.0,0.95024966]
[1754877920293,1.6342677,120610.0,120600.0,0.95024966]
[1754877920593,2.5760277,120610.0,120600.0,0.95024966]
[1754877920787,2.62002302,120610.0,120600.0,0.95024966]
[1754877920991,2.25922302,120610.0,120600.0,0.95024966]
[1754877921191,2.25922302,120610.0,120600.0,0.94124966]
[1754877921396,2.26022302,120610.0,120600.0,0.95124966]
[1754877922300,2.62102302,120610.0,120600.0,0.71212966]
[1754877922500,2.62010302,120610.0,120600.0,0.71212966]
[1754877922694,1.67926302,120610.0,120600.0,0.71212966]
[1754877922899,2.61982302,120610.0,120600.0,0.71212966]
[1754877923102,2.61982302,120610.0,120600.0,0.87930966]
[1754877923300,1.67926302,120610.0,120600.0,0.71212966]
[1754877923499,2.61906302,120610.0,120600.0,0.71212966]
[1754877923800,1.67926302,120610.0,120600.0,0.58082016]
[1754877923993,2.61878302,120610.0,120600.0,0.58082016]
[1754877924195,1.67926302,120610.0,120600.0,0.66372006]
[1754877924496,2.61878302,120610.0,120600.0,0.66372006]
[1754877924691,1.67926302,120610.0,120600.0,0.66372006]
[1754877925001,2.9346277,120610.0,120600.0,0.71213006]
[1754877925201,1.9960677,120610.0,120600.0,0.21213006]
[1754877925395,2.9346277,120610.0,120600.0,0.21213006]
[1754877927601,1.9960677,120610.0,120600.0,0.08082016]
[1754877928001,2.61722302,120610.0,120600.0,0.08082016]
[1754877928200,2.9340277,120610.0,120600.0,0.08082016]
[1754877928401,2.9340277,120610.0,120600.0,0.16371986]
[1754877928798,1.9960677,120610.0,120600.0,0.16371986]
[1754877928999,2.9334277,120610.0,120600.0,0.16371986]
[1754877929199,2.9334277,120610.0,120600.0,0.08082016]
[1754877929401,1.67926302,120610.0,120600.0,0.16371986]
[1754877929603,1.6352677,120610.0,120600.0,0.21212986]
[1754877929802,1.14722,120610.0,120600.0,0.45124986]
[1754877930004,0.0011,120610.0,120600.0,0.80794986]
[1754877930407,0.93742,120610.0,120600.0,0.45124986]
[1754877930605,0.93742,120610.0,120600.0,0.81204986]
[1754877930908,0.93742,120610.0,120600.0,1.31204986]
[1754877931504,0.93674,120610.0,120600.0,1.31204986]
[1754877932008,0.0011,120610.0,120600.0,1.86071301]
[1754877932212,0.51865302,120630.0,120620.0,0.3704159]
[1754877932408,1.28137,120630.0,120620.0,0.1312959]
[1754877932603,1.45371302,120630.0,120620.0,0.1312959]
[1754877932800,1.45261302,120630.0,120620.0,0.1312959]
[1754877933006,0.34741,120630.0,120620.0,0.3704159]
[1754877933202,1.47386965,120630.0,120620.0,0.3704159]
[1754877933508,0.69424426,120640.0,120630.0,0.370409]
[1754877933813,0.54849857,120640.0,120630.0,0.374609]
[1754877934011,1.79742728,120640.0,120630.0,0.374609]
[1754877934214,0.86538728,120640.0,120630.0,0.374609]
[1754877934512,0.54849857,120640.0,120630.0,0.374609]
[1754877934713,1.79654728,120640.0,120630.0,0.374609]
[1754877934913,0.86538728,120640.0,120630.0,0.302669]
[1754877935115,1.79654728,120640.0,120630.0,0.135489]
[1754877935615,1.79678728,120640.0,120630.0,0.05361]
[1754877935811,0.88882874,120640.0,120630.0,0.0041]
[1754877936008,1.81814874,120640.0,120630.0,0.0041]
[1754877936609,0.38314146,120640.0,120630.0,0.05197]
[1754877936816,0.001,120640.0,120630.0,0.7283489]
[1754877937116,1.67384302,120650.0,120640.0,0.3634421]
[1754877937317,1.50412449,120650.0,120640.0,0.3634421]
[1754877937504,2.43324449,120650.0,120640.0,0.3634421]
[1754877937710,2.05058,120650.0,120640.0,0.7242421]
[1754877938616,2.05158,120650.0,120640.0,1.2282421]
[1754877938916,2.05158,120650.0,120640.0,1.2283421]
[1754877939320,2.05158,120650.0,120640.0,1.2273421]
[1754877939513,0.3608,120690.0,120670.0,0.529122]
[1754877939710,0.02073385,120690.0,120680.0,0.3634152]
[1754877939911,0.18041689,120690.0,120680.0,0.3675152]
[1754877940107,0.02073385,120690.0,120680.0,0.3675152]
[1754877940312,0.02073385,120690.0,120680.0,0.7283152]
[1754877940621,0.92682988,120690.0,120680.0,0.79595814]
[1754877940819,0.00110988,120690.0,120680.0,0.79605814]
[1754877941118,0.31698871,120700.0,120680.0,0.96174454]
[1754877941420,0.31698871,120700.0,120690.0,0.2888183]
[1754877941723,0.83737175,120700.0,120690.0,0.1308083]
[1754877941920,1.40213175,120700.0,120690.0,0.04797]
[1754877942111,1.76293175,120700.0,120690.0,0.0001]
[1754877942317,0.83737175,120700.0,120690.0,0.0001]
[1754877942517,1.76293175,120700.0,120690.0,0.0001]
[1754877942718,1.76293175,120700.0,120680.0,0.57174294]
[1754877942719,1.92863576,120700.0,120680.0,0.57174294]
[1754877942924,0.52048304,120690.0,120680.0,0.57174294]
[1754877943421,0.3608,120690.0,120680.0,0.93515804]
[1754877944027,0.3608,120710.0,120700.0,0.4462259]
[1754877944215,0.52048304,120710.0,120700.0,0.4462259]
[1754877944416,1.29368,120710.0,120700.0,0.4462259]
[1754877944716,0.52048304,120710.0,120700.0,0.4462259]
[1754877944914,1.45292304,120710.0,120700.0,0.4462259]
[1754877945115,1.45292304,120710.0,120700.0,0.78057]
[1754877945318,0.52048304,120710.0,120700.0,0.78057]
[1754877945523,1.45492304,120710.0,120700.0,0.7888114]
[1754877945825,1.45492304,120710.0,120700.0,0.70598]
[1754877946116,1.45492304,120710.0,120700.0,0.7888114]
[1754877946117,0.52148304,120710.0,120700.0,0.7888114]
[1754877946324,1.45216304,120710.0,120700.0,0.7888114]
[1754877946723,1.45216304,120710.0,120700.0,0.54787]
[1754877946914,0.52148304,120710.0,120700.0,0.5]
[1754877947219,0.68717904,120710.0,120700.0,0.5]
[1754877947521,0.68717904,120710.0,120700.0,0.04787]
[1754877947522,0.52148304,120710.0,120700.0,0.04787]
[1754877947715,0.52148304,120710.0,120700.0,0.3634013]
[1754877947911,1.45052304,120710.0,120700.0,0.28057]
[1754877948117,1.45012304,120710.0,120700.0,0.04787]
[1754877948417,0.52148304,120710.0,120680.0,0.59684024]
[1754877948615,1.76525175,120700.0,120690.0,0.04797]
[1754877948818,1.76525175,120700.0,120690.0,0.1308082]
[1754877949016,1.60556871,120700.0,120690.0,0.1308082]
[1754877949215,1.76525175,120700.0,120690.0,0.1308082]
[1754877949927,1.76525175,120700.0,120690.0,0.6308082]
[1754877950226,1.76525175,120700.0,120690.0,0.6318082]
[1754877951020,1.76525175,120700.0,120690.0,0.54897]
[1754877951326,1.76525175,120700.0,120690.0,0.6318082]
[1754877951721,1.76525175,120700.0,120690.0,1.2253082]
[1754877951722,0.92788,120700.0,120690.0,1.2253082]
[1754877952024,1.146,120740.0,120720.0,0.1306876]
[1754877952025,0.32494,120730.0,120720.0,0.1306876]
[1754877952221,0.32494,120730.0,120720.0,0.1307876]
[1754877952222,1.2963,120730.0,120720.0,0.1307876]
[1754877952421,1.45598304,120730.0,120720.0,0.1307876]
[1754877952622,0.48462304,120730.0,120720.0,0.2888976]
[1754877952924,1.45586304,120730.0,120720.0,0.1307876]
[1754877953123,1.45586304,120730.0,120720.0,0.7888976]
[1754877953323,1.46086304,120730.0,120720.0,0.8644876]
[1754877953527,1.46086304,120730.0,120720.0,0.7898976]
[1754877953725,1.46086304,120730.0,120720.0,0.6317876]
[1754877954022,0.80651175,120730.0,120720.0,0.54897]
[1754877954226,1.77715175,120730.0,120720.0,0.6317876]
[1754877954415,1.77715175,120730.0,120720.0,0.7898976]
[1754877954615,1.77531175,120730.0,120720.0,0.7898976]
[1754877954827,1.77531175,120730.0,120720.0,0.8644876]
[1754877955238,1.77531175,120730.0,120720.0,0.6317876]
[1754877955832,1.45842304,120730.0,120720.0,0.6317876]
[1754877956130,0.80651175,120730.0,120720.0,0.6317876]
[1754877956318,0.80651175,120730.0,120720.0,0.8685876]
[1754877956319,0.005,120730.0,120720.0,0.8685876]
[1754877956520,0.97092,120730.0,120720.0,0.8685876]
[1754877957022,0.005,120730.0,120720.0,0.8685876]
[1754877957323,0.01653615,120760.0,120750.0,0.0827969]
[1754877957324,0.37733615,120760.0,120750.0,0.0827969]
[1754877957525,1.51321919,120760.0,120750.0,0.3634669]
[1754877957825,1.51321919,120760.0,120750.0,0.3675669]
[1754877958228,1.51269919,120760.0,120750.0,0.3675669]
[1754877958438,1.73505544,120760.0,120750.0,0.3675669]
[1754877958624,1.89473848,120760.0,120750.0,0.3675669]
[1754877959032,1.53393848,120760.0,120750.0,0.3675669]
[1754877959230,1.53393848,120760.0,120750.0,0.8675669]
[1754877959734,1.15189919,120760.0,120750.0,0.8705669]
[1754877959922,0.17621919,120760.0,120750.0,0.8705669]
[1754877960124,1.14953919,120760.0,120750.0,0.8705669]
[1754877960530,0.17621919,120760.0,120750.0,0.8705669]
[1754877960734,1.14953919,120760.0,120750.0,0.8705669]
[1754877960930,0.01653615,120760.0,120750.0,0.8705669]
[1754877961229,0.01653615,120760.0,120750.0,0.93612396]
[1754877961230,0.98901615,120760.0,120750.0,0.93612396]
[1754877961434,0.01653615,120760.0,120750.0,1.29692396]
[1754877961836,0.99137615,120760.0,120750.0,1.29692396]
[1754877962025,0.01653615,120760.0,120750.0,1.29692396]
[1754877962230,0.99121615,120760.0,120750.0,1.29692396]
[1754877962630,0.01653615,120760.0,120750.0,1.46254796]
[1754877962836,0.99041615,120760.0,120750.0,1.46254796]
[1754877963132,0.01653615,120760.0,120750.0,0.93612396]
[1754877963334,0.85323636,120760.0,120750.0,0.70342396]
[1754877963631,0.01653615,120760.0,120750.0,1.29692396]
[1754877963832,0.01653615,120760.0,120750.0,0.93612396]
[1754877964039,0.99241615,120760.0,120750.0,0.93612396]
[1754877964240,1.35269615,120760.0,120750.0,0.70342396]
[1754877964436,0.69355332,120760.0,120750.0,0.57275706]
[1754877964738,1.24197032,120760.0,120720.0,0.04787]
[1754877964939,0.83670021,120730.0,120720.0,0.04787]
[1754877965133,1.81106021,120730.0,120720.0,0.04787]
[1754877965330,1.19750021,120730.0,120720.0,0.0041]
[1754877965528,1.19750021,120730.0,120720.0,0.0869175]
[1754877965728,2.17106021,120730.0,120720.0,0.1336575]
[1754877965928,0.15978304,120730.0,120720.0,0.3700875]
[1754877966131,0.83680021,120730.0,120720.0,0.05094]
[1754877966336,0.83680021,120730.0,120720.0,0.1367575]
[1754877966534,1.80992021,120730.0,120720.0,0.3730875]
[1754877966738,0.83680021,120730.0,120720.0,0.8730875]
[1754877967041,1.80932021,120730.0,120720.0,0.55394]
[1754877967337,1.80932021,120730.0,120720.0,0.6367577]
[1754877967537,0.52058304,120730.0,120720.0,0.6367577]
[1754877967739,0.15978304,120730.0,120720.0,1.2308877]
[1754877967941,0.98214,120730.0,120720.0,1.2287877]
[1754877968130,0.0001,120730.0,120720.0,1.2287877]
[1754877968530,0.0001,120730.0,120720.0,1.2328877]
[1754877968531,0.98162,120730.0,120720.0,1.2328877]
[1754877969838,1.50062304,120730.0,120720.0,0.6357577]
[1754877970336,0.52058304,120730.0,120720.0,0.8720877]
[1754877970637,0.15978304,120730.0,120720.0,0.8679877]
[1754877971236,1.13926304,120730.0,120720.0,0.8679877]
[1754877971634,1.13878304,120730.0,120720.0,0.8679877]
[1754877971939,0.9785,120730.0,120720.0,0.8776959]
[1754877972140,0.97858,120730.0,120720.0,1.19391307]
[1754877972437,0.83680021,120730.0,120720.0,0.6413659]
[1754877972636,0.52058304,120730.0,120720.0,0.6316577]
[1754877972834,1.50634304,120730.0,120720.0,0.6316577]
[1754877973036,0.52058304,120730.0,120720.0,0.6316577]
[1754877973238,1.50998304,120730.0,120720.0,0.6296577]
[1754877973438,0.52058304,120730.0,120720.0,0.7988777]
[1754877973633,1.51006304,120730.0,120720.0,0.7988777]
[1754877973941,1.51006304,120730.0,120720.0,0.8689877]
[1754877974241,0.98958,120730.0,120720.0,0.92682945]
[1754877974441,0.0001,120730.0,120720.0,0.92682945]
[1754877974629,0.9895,120730.0,120720.0,0.92682945]
[1754877975032,0.9895,120730.0,120720.0,0.8689877]
[1754877975234,0.9895,120730.0,120720.0,0.94132157]
[1754877975534,0.0001,120730.0,120720.0,1.30212157]
[1754877975740,0.98858,120730.0,120720.0,1.30212157]
[1754877976043,0.98858,120730.0,120720.0,1.06579157]
[1754877976334,0.3609,120730.0,120720.0,0.64236711]
[1754877976535,1.82324021,120730.0,120720.0,0.55954894]
[1754877976745,1.82324021,120730.0,120720.0,0.69029584]
[1754877977042,1.50702304,120730.0,120720.0,0.68729584]
[1754877977227,1.50702304,120730.0,120720.0,0.6346592]
[1754877977939,1.50702304,120730.0,120720.0,0.6306592]
[1754877978635,0.52058304,120730.0,120720.0,0.6296592]
[1754877978841,0.52058304,120730.0,120720.0,0.6316592]
[1754877978842,1.55018304,120730.0,120720.0,0.6316592]
[1754877979043,1.55018304,120730.0,120720.0,0.7978792]
[1754877979443,0.52058304,120730.0,120720.0,0.94032307]
[1754877979740,1.54570304,120730.0,120720.0,0.94032307]
[1754877979940,0.0001,120730.0,120720.0,0.94032307]
[1754877980142,1.02442,120730.0,120720.0,0.877698]
[1754877980340,1.02406,120730.0,120720.0,0.94032307]
[1754877981038,1.02406,120730.0,120720.0,0.93932307]
[1754877981546,1.02406,120730.0,120720.0,0.94342307]
[1754877981741,1.38486,120730.0,120720.0,0.86160387]
[1754877981943,1.38486,120730.0,120720.0,0.94442307]
[1754877982843,0.90276448,120730.0,120720.0,0.57365857]
[1754877983051,0.52058304,120730.0,120720.0,0.61069469]
[1754877983359,1.53954304,120730.0,120720.0,0.55294]
[1754877983546,1.53954304,120730.0,120720.0,0.05294]
[1754877983846,0.3609,120730.0,120720.0,0.1357592]
[1754877984049,1.53762304,120730.0,120720.0,0.7639795]
[1754877984247,0.52058304,120730.0,120720.0,0.38179806]
[1754877984444,0.0001,120730.0,120720.0,0.88179806]
[1754877984743,0.0001,120730.0,120720.0,1.6247795]
[1754877984941,0.3609,120730.0,120720.0,0.88179806]